[Event "NJSK 2024 C"]
[Site "Groningen, Netherlands"]
[Date "2024.04.27"]
[Round "1.8"]
[White "Klein Tuente, Sam"]
[Black "Ambrona Navarro, Himar"]
[Result "1-0"]
[TimeControl "90min/40moves + 30min + 30sec/move"]
[WhiteElo "1732"]
[BlackElo "1963"]

1. e4 {[%clk 01:30:57]} {[%emt 00:00:02]} c6 {[%clk 01:30:37]} {[%emt
00:00:23]} 2. d4 {[%clk 01:30:53]} {[%emt 00:00:35]} d5 {[%clk 01:30:56]}
{[%emt 00:00:10]} 3. Nc3 {[%clk 01:29:20]} {[%emt 00:02:03]} dxe4 {[%clk
01:31:03]} {[%emt 00:00:24]} 4. Nxe4 {[%clk 01:29:44]} {[%emt 00:00:06]} Nf6
{[%clk 01:31:15]} {[%emt 00:00:17]} 5. Nxf6+ {[%clk 01:29:57]} {[%emt
00:00:18]} exf6 {[%clk 01:31:12]} {[%emt 00:00:32]} 6. c3 {[%clk 01:30:12]}
{[%emt 00:00:15]} Bd6 {[%clk 01:31:20]} {[%emt 00:00:21]} 7. Bd3 {[%clk
01:30:26]} {[%emt 00:00:17]} O-O {[%clk 01:31:26]} {[%emt 00:00:23]} 8. Qc2
{[%clk 01:30:23]} {[%emt 00:00:35]} Re8+ {[%clk 01:31:36]} {[%emt 00:00:20]} 9.
Ne2 {[%clk 01:30:41]} {[%emt 00:00:12]} h5 {[%clk 01:31:44]} {[%emt 00:00:20]}
10. Be3 {[%clk 01:25:21]} {[%emt 00:05:51]} Nd7 {[%clk 01:28:32]} {[%emt
00:03:42]} 11. O-O-O {[%clk 01:22:53]} {[%emt 00:02:59]} b5 {[%clk 01:22:35]}
{[%emt 00:06:27]} 12. d5 {[%clk 01:14:05]} {[%emt 00:09:18]} c5 {[%clk
01:19:29]} {[%emt 00:03:36]} 13. Bxb5 {[%clk 01:11:54]} {[%emt 00:02:40]} Rb8
{[%clk 01:19:19]} {[%emt 00:00:39]} 14. c4 {[%clk 01:11:04]} {[%emt 00:01:21]}
a6 {[%clk 01:17:35]} {[%emt 00:02:14]} 15. Bc6 {[%clk 01:07:35]} {[%emt
00:04:00]} Qa5 {[%clk 01:13:28]} {[%emt 00:04:33]} 16. Qa4 {[%clk 01:01:23]}
{[%emt 00:06:45]} Qb6 {[%clk 01:10:57]} {[%emt 00:02:57]} 17. Rd2 {[%clk
00:58:30]} {[%emt 00:03:28]} Rxe3 {[%clk 01:06:12]} {[%emt 00:05:14]} 18. fxe3
{[%clk 00:56:22]} {[%emt 00:02:39]} Ne5 {[%clk 01:06:36]} {[%emt 00:00:05]} 19.
Qc2 {[%clk 00:51:46]} {[%emt 00:05:07]} Ng4 {[%clk 01:05:21]} {[%emt 00:01:41]}
20. e4 {[%clk 00:48:24]} {[%emt 00:03:54]} Be5 {[%clk 01:00:09]} {[%emt
00:05:42]} 21. Rd3 {[%clk 00:43:36]} {[%emt 00:05:20]} Bxb2+ {[%clk 00:39:05]}
{[%emt 00:21:33]} 22. Kb1 {[%clk 00:44:00]} {[%emt 00:00:06]} Be5+ {[%clk
00:35:17]} {[%emt 00:04:18]} 23. Rb3 {[%clk 00:44:23]} {[%emt 00:00:08]} Qa5
{[%clk 00:35:20]} {[%emt 00:00:23]} 24. Rxb8 {[%clk 00:43:18]} {[%emt
00:01:38]} Bxb8 {[%clk 00:35:41]} {[%emt 00:00:10]} 25. h3 {[%clk 00:42:31]}
{[%emt 00:01:17]} Nf2 {[%clk 00:24:55]} {[%emt 00:11:15]} 26. Rf1 {[%clk
00:41:22]} {[%emt 00:01:39]} Be5 {[%clk 00:25:07]} {[%emt 00:00:17]} 27. Nc1
{[%clk 00:38:29]} {[%emt 00:03:24]} Nxe4 {[%clk 00:09:29]} {[%emt 00:16:08]} 28.
Qxe4 {[%clk 00:38:37]} {[%emt 00:00:22]} Qc3 {[%clk 00:09:46]} {[%emt
00:00:11]} 29. Qe2 {[%clk 00:36:12]} {[%emt 00:02:57]} Qa1+ {[%clk 00:09:34]}
{[%emt 00:00:43]} 30. Kc2 {[%clk 00:36:32]} {[%emt 00:00:09]} g6 {[%clk
00:06:55]} {[%emt 00:03:08]} 31. d6 {[%clk 00:35:37]} {[%emt 00:01:27]} Bf5+
{[%clk 00:04:05]} {[%emt 00:03:19]} 32. Rxf5 {[%clk 00:35:23]} {[%emt
00:00:44]} gxf5 {[%clk 00:04:22]} {[%emt 00:00:12]} 33. d7 {[%clk 00:35:39]}
{[%emt 00:00:16]} Qb2+ {[%clk 00:04:40]} {[%emt 00:00:11]} 34. Kd1 {[%clk
00:35:41]} {[%emt 00:00:26]} Qb6 {[%clk 00:04:38]} {[%emt 00:00:33]} 35. Qd3
{[%clk 00:34:52]} {[%emt 00:01:20]} Bc7 {[%clk 00:04:40]} {[%emt 00:00:27]} 36.
Bf3 {[%clk 00:34:40]} {[%emt 00:00:43]} Kf8 {[%clk 00:04:17]} {[%emt 00:00:52]}
37. Bxh5 {[%clk 00:34:32]} {[%emt 00:00:39]} Ke7 {[%clk 00:04:41]} {[%emt
00:00:03]} 38. Qd5 {[%clk 00:34:37]} {[%emt 00:00:28]} Qd6 {[%clk 00:04:38]}
{[%emt 00:00:32]} 39. Qxd6+ {[%clk 00:34:42]} {[%emt 00:00:26]} Bxd6 {[%clk
00:05:06]} {[%emt 00:00:02]} 40. Bxf7 {[%clk 00:34:54]} {[%emt 00:00:18]} Kxd7
{[%clk 00:05:33]} {[%emt 00:00:03]} 41. Bd5 {[%clk 00:35:14]} {[%emt 00:00:11]}
Ke7 {[%clk 00:05:58]} {[%emt 00:00:04]} 42. Ke2 {[%clk 00:35:33]} {[%emt
00:00:10]} f4 {[%clk 00:06:21]} {[%emt 00:00:08]} 43. Kf3 {[%clk 00:35:57]}
{[%emt 00:00:06]} f5 {[%clk 00:06:23]} {[%emt 00:00:28]} 44. Nd3 {[%clk
00:36:22]} {[%emt 00:00:06]} Kf6 {[%clk 00:06:50]} {[%emt 00:00:02]} 45. Nxf4
{[%clk 00:35:22]} {[%emt 00:01:30]} Kg5 {[%clk 00:07:11]} {[%emt 00:00:09]} 46.
Ne6+ {[%clk 00:35:40]} {[%emt 00:00:13]} Kh4 {[%clk 00:07:37]} {[%emt
00:00:03]} 47. Ng7 {[%clk 00:35:57]} {[%emt 00:00:13]} Kg5 {[%clk 00:08:01]}
{[%emt 00:00:06]} 48. Ne8 {[%clk 00:36:11]} {[%emt 00:00:16]} Be7 {[%clk
00:08:26]} {[%emt 00:00:05]} 49. Nc7 {[%clk 00:36:34]} {[%emt 00:00:07]} a5
{[%clk 00:08:52]} {[%emt 00:00:04]} 50. Nb5 {[%clk 00:36:27]} {[%emt 00:00:38]}
Bf6 {[%clk 00:09:05]} {[%emt 00:00:16]} 51. Be6 {[%clk 00:36:11]} {[%emt
00:00:46]} Be5 {[%clk 00:09:19]} {[%emt 00:00:16]} 52. Na3 {[%clk 00:36:02]}
{[%emt 00:00:39]} Bd4 {[%clk 00:09:24]} {[%emt 00:00:24]} 53. Nc2 {[%clk
00:36:15]} {[%emt 00:00:18]} Be5 {[%clk 00:09:42]} {[%emt 00:00:13]} 54. Ne3
{[%clk 00:36:36]} {[%emt 00:00:08]} f4 {[%clk 00:10:05]} {[%emt 00:00:04]} 55.
Nd5 {[%clk 00:36:40]} {[%emt 00:00:29]} Bd6 {[%clk 00:10:25]} {[%emt 00:00:07]}
56. Nc3 {[%clk 00:36:13]} {[%emt 00:01:01]} Kf6 {[%clk 00:10:42]} {[%emt
00:00:12]} 57. Ne4+ {[%clk 00:36:35]} {[%emt 00:00:08]} 1-0

[Event "NJSK 2024 C"]
[Site "Groningen, Netherlands"]
[Date "2024.04.27"]
[Round "1.9"]
[White "Terlouw, Wouter"]
[Black "Frederiks, Jesse"]
[Result "1-0"]
[TimeControl "90min/40moves + 30min + 30sec/move"]
[WhiteElo "1961"]
[BlackElo "1718"]

1. d4 {[%clk 01:30:54]} {[%emt 00:00:05]} Nf6 {[%clk 01:29:54]} {[%emt
00:01:07]} 2. Nf3 {[%clk 01:30:30]} {[%emt 00:00:54]} e6 {[%clk 01:29:54]}
{[%emt 00:00:30]} 3. g3 {[%clk 01:28:57]} {[%emt 00:02:03]} b6 {[%clk
01:29:07]} {[%emt 00:01:16]} 4. Bg2 {[%clk 01:29:12]} {[%emt 00:00:16]} Bb7
{[%clk 01:28:22]} {[%emt 00:01:15]} 5. c4 {[%clk 01:29:33]} {[%emt 00:00:09]}
Be7 {[%clk 01:26:31]} {[%emt 00:02:21]} 6. O-O {[%clk 01:29:39]} {[%emt
00:00:24]} O-O {[%clk 01:25:13]} {[%emt 00:01:47]} 7. d5 {[%clk 01:28:49]}
{[%emt 00:01:21]} exd5 {[%clk 01:23:27]} {[%emt 00:02:16]} 8. Nh4 {[%clk
01:29:08]} {[%emt 00:00:10]} c6 {[%clk 01:21:49]} {[%emt 00:02:09]} 9. cxd5
{[%clk 01:28:55]} {[%emt 00:00:44]} Nxd5 {[%clk 01:21:26]} {[%emt 00:00:52]} 10.
Nf5 {[%clk 01:28:54]} {[%emt 00:00:30]} Nc7 {[%clk 01:02:33]} {[%emt 00:19:24]}
11. e4 {[%clk 01:26:28]} {[%emt 00:02:57]} Re8 {[%clk 00:52:46]} {[%emt
00:10:17]} 12. Qg4 {[%clk 01:23:41]} {[%emt 00:03:17]} Ne6 {[%clk 00:38:47]}
{[%emt 00:14:28]} 13. Nc3 {[%clk 01:10:05]} {[%emt 00:14:06]} Na6 {[%clk
00:29:29]} {[%emt 00:09:48]} 14. e5 {[%clk 01:07:21]} {[%emt 00:03:14]} Nac7
{[%clk 00:23:08]} {[%emt 00:06:51]} 15. Ne4 {[%clk 01:06:06]} {[%emt 00:01:46]}
Nd5 {[%clk 00:19:52]} {[%emt 00:03:46]} 16. Ned6 {[%clk 01:05:51]} {[%emt
00:00:45]} Bxd6 {[%clk 00:19:38]} {[%emt 00:00:44]} 17. Nxd6 {[%clk 01:06:11]}
{[%emt 00:00:10]} Ba6 {[%clk 00:19:40]} {[%emt 00:00:28]} 18. Rd1 {[%clk
01:05:25]} {[%emt 00:01:16]} Ne7 {[%clk 00:16:16]} {[%emt 00:03:54]} 19. Nxe8
{[%clk 01:04:57]} {[%emt 00:00:57]} Qxe8 {[%clk 00:16:43]} {[%emt 00:00:03]} 20.
f4 {[%clk 01:03:08]} {[%emt 00:02:19]} g6 {[%clk 00:16:56]} {[%emt 00:00:16]}
21. Be3 {[%clk 01:02:55]} {[%emt 00:00:44]} Nf5 {[%clk 00:16:37]} {[%emt
00:00:50]} 22. Bf2 {[%clk 01:03:03]} {[%emt 00:00:19]} Rc8 {[%clk 00:13:17]}
{[%emt 00:03:52]} 23. Be4 {[%clk 00:59:51]} {[%emt 00:03:42]} Neg7 {[%clk
00:11:36]} {[%emt 00:02:12]} 24. Qf3 {[%clk 00:59:36]} {[%emt 00:00:44]} h5
{[%clk 00:11:21]} {[%emt 00:00:45]} 25. h3 {[%clk 00:59:29]} {[%emt 00:00:36]}
c5 {[%clk 00:08:25]} {[%emt 00:03:27]} 26. Rd2 {[%clk 00:55:42]} {[%emt
00:04:16]} Nd4 {[%clk 00:08:01]} {[%emt 00:00:55]} 27. Bxd4 {[%clk 00:55:40]}
{[%emt 00:00:32]} cxd4 {[%clk 00:08:29]} {[%emt 00:00:02]} 28. Rxd4 {[%clk
00:55:55]} {[%emt 00:00:15]} Rc7 {[%clk 00:08:10]} {[%emt 00:00:49]} 29. Rad1
{[%clk 00:54:10]} {[%emt 00:02:15]} Qc8 {[%clk 00:08:21]} {[%emt 00:00:20]} 30.
Qe3 {[%clk 00:54:26]} {[%emt 00:00:12]} Ne6 {[%clk 00:07:33]} {[%emt 00:01:20]}
31. Rd6 {[%clk 00:54:31]} {[%emt 00:00:21]} Bb7 {[%clk 00:07:16]} {[%emt
00:00:50]} 32. Bxb7 {[%clk 00:53:18]} {[%emt 00:01:43]} Qxb7 {[%clk 00:07:44]}
{[%emt 00:00:03]} 33. Qd3 {[%clk 00:53:24]} {[%emt 00:00:23]} Nc5 {[%clk
00:08:02]} {[%emt 00:00:14]} 34. Qd5 {[%clk 00:53:39]} {[%emt 00:00:09]} Qa6
{[%clk 00:05:27]} {[%emt 00:03:09]} 35. Rxg6+ {[%clk 00:53:58]} {[%emt
00:00:11]} 1-0

[Event "NJSK 2024 C"]
[Site "Groningen, Netherlands"]
[Date "2024.04.27"]
[Round "1.10"]
[White "Ngangbam, Chingthang"]
[Black "Guillaumond, Matthieu"]
[Result "1-0"]
[TimeControl "90min/40moves + 30min + 30sec/move"]
[WhiteElo "1713"]
[BlackElo "1945"]

1. e4 {[%clk 01:30:49]} {[%emt 00:00:09]} c5 {[%clk 01:30:51]} {[%emt
00:00:10]} 2. Nf3 {[%clk 01:31:01]} {[%emt 00:00:17]} d6 {[%clk 01:30:17]}
{[%emt 00:01:05]} 3. d4 {[%clk 01:30:58]} {[%emt 00:00:33]} cxd4 {[%clk
01:30:40]} {[%emt 00:00:08]} 4. Nxd4 {[%clk 01:31:19]} {[%emt 00:00:08]} Nf6
{[%clk 01:31:03]} {[%emt 00:00:07]} 5. Nc3 {[%clk 01:30:54]} {[%emt 00:00:55]}
a6 {[%clk 01:31:11]} {[%emt 00:00:23]} 6. Be3 {[%clk 01:29:44]} {[%emt
00:01:39]} e5 {[%clk 01:31:18]} {[%emt 00:00:23]} 7. Nb3 {[%clk 01:30:04]}
{[%emt 00:00:10]} Be6 {[%clk 01:31:26]} {[%emt 00:00:21]} 8. Be2 {[%clk
01:27:55]} {[%emt 00:02:39]} Be7 {[%clk 01:30:38]} {[%emt 00:01:19]} 9. f3
{[%clk 01:23:42]} {[%emt 00:04:43]} h5 {[%clk 01:28:12]} {[%emt 00:02:57]} 10.
Nd5 {[%clk 01:22:41]} {[%emt 00:01:30]} Nxd5 {[%clk 01:24:12]} {[%emt
00:04:30]} 11. exd5 {[%clk 01:22:54]} {[%emt 00:00:17]} Bf5 {[%clk 01:24:39]}
{[%emt 00:00:04]} 12. O-O {[%clk 01:19:06]} {[%emt 00:04:17]} Nd7 {[%clk
01:22:44]} {[%emt 00:02:25]} 13. Qd2 {[%clk 01:16:48]} {[%emt 00:02:48]} Rc8
{[%emt 00:03:07]} 14. c4 {[%clk 01:16:20]} Bg6 {[%clk 01:13:23]} {[%emt
00:08:12]} 15. Na5 {[%clk 01:10:56]} {[%emt 00:05:53]} Qc7 {[%clk 01:11:53]}
{[%emt 00:02:02]} 16. b4 {[%clk 01:08:02]} {[%emt 00:03:23]} f5 {[%clk
01:05:02]} {[%emt 00:07:22]} 17. f4 {[%clk 01:04:17]} {[%emt 00:04:15]} Nf6
{[%clk 00:57:16]} {[%emt 00:08:16]} 18. Bd3 {[%clk 00:40:56]} {[%emt 00:23:51]}
Ng4 {[%clk 00:42:22]} {[%emt 00:15:25]} 19. fxe5 {[%clk 00:39:00]} {[%emt
00:02:26]} dxe5 {[%clk 00:39:15]} {[%emt 00:03:36]} 20. c5 {[%clk 00:31:07]}
{[%emt 00:08:23]} e4 {[%clk 00:35:25]} {[%emt 00:04:20]} 21. d6 {[%clk
00:25:34]} {[%emt 00:06:03]} Qd7 {[%clk 00:34:16]} {[%emt 00:01:39]} 22. dxe7
{[%clk 00:23:24]} {[%emt 00:02:41]} exd3 {[%clk 00:33:46]} {[%emt 00:00:59]} 23.
Nc4 {[%clk 00:21:14]} {[%emt 00:02:40]} Rc6 {[%clk 00:31:26]} {[%emt 00:02:50]}
24. Nd6+ {[%clk 00:19:25]} {[%emt 00:02:19]} Rxd6 {[%clk 00:27:22]} {[%emt
00:04:35]} 25. cxd6 {[%clk 00:19:48]} {[%emt 00:00:07]} Qxd6 {[%clk 00:27:42]}
{[%emt 00:00:09]} 26. Bf4 {[%clk 00:19:43]} {[%emt 00:00:35]} Qd4+ {[%clk
00:26:53]} {[%emt 00:01:19]} 27. Kh1 {[%clk 00:19:51]} {[%emt 00:00:22]} Kxe7
{[%clk 00:26:47]} {[%emt 00:00:37]} 28. h3 {[%clk 00:19:11]} {[%emt 00:01:09]}
Nf6 {[%clk 00:24:45]} {[%emt 00:02:32]} 29. Bg5 {[%clk 00:17:46]} {[%emt
00:01:55]} Kf7 {[%clk 00:20:21]} {[%emt 00:04:54]} 30. Bxf6 {[%clk 00:17:54]}
{[%emt 00:00:22]} Kxf6 {[%clk 00:20:36]} {[%emt 00:00:15]} 31. Rad1 {[%clk
00:17:32]} {[%emt 00:00:52]} Rc8 {[%clk 00:18:26]} {[%emt 00:02:40]} 32. Rf3
{[%clk 00:15:54]} {[%emt 00:02:07]} Rc2 {[%clk 00:14:53]} {[%emt 00:04:04]} 33.
Rxd3 {[%clk 00:15:39]} {[%emt 00:00:45]} Rxd2 {[%clk 00:13:08]} {[%emt
00:02:15]} 34. Rxd4 {[%clk 00:16:03]} {[%emt 00:00:06]} Rxd4 {[%clk 00:11:27]}
{[%emt 00:02:11]} 35. Rxd4 {[%clk 00:16:26]} {[%emt 00:00:07]} Be8 {[%clk
00:11:40]} {[%emt 00:00:10]} 36. Rd8 {[%clk 00:14:51]} {[%emt 00:02:12]} Bc6
{[%clk 00:11:54]} {[%emt 00:00:14]} 37. Kg1 {[%clk 00:14:35]} {[%emt 00:00:48]}
Ke7 {[%clk 00:11:35]} {[%emt 00:00:49]} 38. Rd4 {[%clk 00:14:47]} {[%emt
00:00:18]} Ke6 {[%clk 00:11:28]} {[%emt 00:00:37]} 39. Kf2 {[%clk 00:14:21]}
{[%emt 00:00:55]} Ke5 {[%clk 00:10:36]} {[%emt 00:01:24]} 40. Rd8 {[%clk
00:14:13]} {[%emt 00:00:37]} Bd5 {[%clk 00:09:44]} {[%emt 00:01:20]} 41. a3
{[%emt 00:07:54]} g5 {[%clk 00:07:38]} 42. g3 {[%clk 00:07:28]} {[%emt
00:02:29]} f4 {[%clk 00:03:37]} {[%emt 00:04:31]} 43. gxf4+ {[%clk 00:07:14]}
{[%emt 00:00:44]} gxf4 {[%clk 00:03:58]} {[%emt 00:00:09]} 44. Rh8 {[%clk
00:06:47]} {[%emt 00:00:57]} Bf7 {[%clk 00:04:10]} {[%emt 00:00:17]} 45. Rh7
{[%clk 00:06:09]} {[%emt 00:01:09]} Kf6 {[%clk 00:01:07]} {[%emt 00:03:34]} 46.
Kf3 {[%clk 00:05:30]} {[%emt 00:01:09]} Bd5+ {[%clk 00:01:10]} {[%emt
00:00:26]} 47. Kxf4 {[%clk 00:05:37]} {[%emt 00:00:24]} Kg6 {[%clk 00:01:34]}
{[%emt 00:00:05]} 48. Rd7 {[%clk 00:05:15]} {[%emt 00:00:52]} Bg2 {[%clk
00:01:20]} {[%emt 00:00:44]} 49. h4 {[%clk 00:05:26]} {[%emt 00:00:19]} Kf6
{[%clk 00:01:22]} {[%emt 00:00:28]} 50. Rh7 {[%clk 00:05:05]} {[%emt 00:00:50]}
Kg6 {[%clk 00:01:42]} {[%emt 00:00:11]} 51. Rh8 {[%clk 00:05:13]} {[%emt
00:00:21]} Bd5 {[%clk 00:01:44]} {[%emt 00:00:29]} 52. Rd8 {[%clk 00:05:35]}
{[%emt 00:00:08]} Bh1 {[%clk 00:00:42]} {[%emt 00:01:32]} 53. Rd6+ {[%clk
00:05:30]} {[%emt 00:00:35]} Kg7 {[%clk 00:01:02]} {[%emt 00:00:11]} 54. Kg5
{[%clk 00:05:46]} {[%emt 00:00:12]} Bf3 {[%clk 00:01:12]} {[%emt 00:00:20]} 55.
Rd7+ {[%clk 00:05:57]} {[%emt 00:00:20]} Kf8 {[%clk 00:01:19]} {[%emt
00:00:22]} 56. Kf6 {[%clk 00:05:50]} {[%emt 00:00:38]} Ke8 {[%clk 00:01:36]}
{[%emt 00:00:13]} 57. Rh7 {[%clk 00:05:58]} {[%emt 00:00:21]} b5 {[%clk
00:01:25]} {[%emt 00:00:42]} 58. Ra7 {[%clk 00:06:00]} {[%emt 00:00:27]} Kd8
{[%clk 00:01:35]} {[%emt 00:00:21]} 59. Rxa6 {[%clk 00:06:13]} {[%emt
00:00:17]} Kc7 {[%clk 00:01:46]} {[%emt 00:00:19]} 60. Kg5 {[%clk 00:06:23]}
{[%emt 00:00:20]} 1-0

[Event "NJSK 2024 C"]
[Site "Groningen, Netherlands"]
[Date "2024.04.27"]
[Round "1.11"]
[White "Darie, Aden"]
[Black "Kors, Siebe"]
[Result "1-0"]
[TimeControl "90min/40moves + 30min + 30sec/move"]
[WhiteElo "1923"]
[BlackElo "1668"]

1. e4 {[%clk 01:30:54]} {[%emt 00:00:06]} e5 {[%clk 01:30:50]} {[%emt
00:00:11]} 2. Nf3 {[%clk 01:31:01]} {[%emt 00:00:22]} Nc6 {[%clk 01:30:33]}
{[%emt 00:00:47]} 3. Bb5 {[%clk 01:31:21]} {[%emt 00:00:09]} Nf6 {[%clk
01:29:22]} {[%emt 00:01:41]} 4. d3 {[%clk 01:31:33]} {[%emt 00:00:19]} g6
{[%clk 01:28:54]} {[%emt 00:00:59]} 5. O-O {[%clk 01:31:16]} {[%emt 00:00:46]}
Bg7 {[%clk 01:28:11]} {[%emt 00:01:13]} 6. Re1 {[%clk 01:31:17]} {[%emt
00:00:30]} O-O {[%clk 01:27:34]} {[%emt 00:01:06]} 7. c3 {[%clk 01:31:38]}
{[%emt 00:00:08]} d5 {[%clk 01:25:37]} {[%emt 00:02:28]} 8. exd5 {[%clk
01:28:58]} {[%emt 00:03:10]} Nxd5 {[%clk 01:24:05]} {[%emt 00:02:03]} 9. Bxc6
{[%clk 01:28:12]} {[%emt 00:01:15]} bxc6 {[%clk 01:24:16]} {[%emt 00:00:19]} 10.
Nxe5 {[%clk 01:27:46]} {[%emt 00:00:56]} Bxe5 {[%clk 01:23:48]} {[%emt
00:00:58]} 11. Rxe5 {[%clk 01:28:04]} {[%emt 00:00:13]} Qd6 {[%clk 01:22:06]}
{[%emt 00:02:11]} 12. Re1 {[%clk 01:27:36]} {[%emt 00:00:57]} Ba6 {[%clk
01:21:26]} {[%emt 00:01:12]} 13. d4 {[%clk 01:24:46]} {[%emt 00:03:19]} Rfe8
{[%clk 01:20:59]} {[%emt 00:00:56]} 14. b3 {[%clk 00:55:24]} {[%emt 00:29:53]}
Re6 {[%clk 01:12:02]} {[%emt 00:09:27]} 15. Rxe6 {[%clk 00:54:37]} {[%emt
00:01:17]} Qxe6 {[%clk 01:12:13]} {[%emt 00:00:19]} 16. c4 {[%clk 00:52:59]}
{[%emt 00:02:09]} Re8 {[%clk 01:11:33]} {[%emt 00:01:09]} 17. Bd2 {[%clk
00:52:31]} {[%emt 00:00:56]} Nf6 {[%clk 01:09:54]} {[%emt 00:02:11]} 18. Nc3
{[%clk 00:51:47]} {[%emt 00:01:15]} Rd8 {[%clk 01:09:43]} {[%emt 00:00:28]} 19.
Be3 {[%clk 00:50:02]} {[%emt 00:02:27]} Ng4 {[%clk 01:09:18]} {[%emt 00:00:55]}
20. Qf3 {[%clk 00:47:50]} {[%emt 00:02:42]} f5 {[%clk 01:07:03]} {[%emt
00:02:45]} 21. h3 {[%clk 00:47:30]} {[%emt 00:00:50]} Nxe3 {[%clk 01:05:59]}
{[%emt 00:01:35]} 22. fxe3 {[%clk 00:47:01]} {[%emt 00:00:58]} Bb7 {[%clk
01:05:06]} {[%emt 00:01:23]} 23. Na4 {[%clk 00:43:42]} {[%emt 00:03:49]} Qc8
{[%clk 01:00:54]} {[%emt 00:04:40]} 24. Nc5 {[%clk 00:43:56]} {[%emt 00:00:18]}
Rd6 {[%clk 01:00:09]} {[%emt 00:01:12]} 25. Rf1 {[%clk 00:43:52]} {[%emt
00:00:37]} Kg7 {[%clk 00:58:55]} {[%emt 00:01:43]} 26. Qf2 {[%clk 00:42:28]}
{[%emt 00:01:55]} Rd8 {[%clk 00:58:07]} {[%emt 00:01:17]} 27. e4 {[%clk
00:42:12]} {[%emt 00:00:47]} Rf8 {[%clk 00:57:54]} {[%emt 00:00:42]} 28. Qf4
{[%clk 00:41:27]} {[%emt 00:01:15]} Kg8 {[%clk 00:56:43]} {[%emt 00:01:40]} 29.
e5 {[%clk 00:41:46]} {[%emt 00:00:13]} Re8 {[%clk 00:56:37]} {[%emt 00:00:36]}
30. Qg5 {[%clk 00:41:40]} {[%emt 00:00:36]} Ba8 {[%clk 00:56:02]} {[%emt
00:01:04]} 31. e6 {[%clk 00:41:56]} {[%emt 00:00:14]} Kg7 {[%clk 00:55:51]}
{[%emt 00:00:42]} 32. Rf3 {[%emt 00:00:28]} f4 33. Rxf4 {[%clk 00:41:58]} Rxe6
{[%clk 00:55:34]} {[%emt 00:00:45]} 34. Rf5 {[%clk 00:42:09]} 1-0

[Event "NJSK 2024 C"]
[Site "Groningen, Netherlands"]
[Date "2024.04.27"]
[Round "1.12"]
[White "Van Haaften, Jelle"]
[Black "Leenen, Boyd"]
[Result "0-1"]
[TimeControl "90min/40moves + 30min + 30sec/move"]
[WhiteElo "1655"]
[BlackElo "1920"]

1. e4 {[%clk 01:30:57]} {[%emt 00:00:02]} e5 {[%clk 01:30:51]} {[%emt
00:00:09]} 2. Bc4 {[%clk 01:31:23]} {[%emt 00:00:05]} Nf6 {[%clk 01:31:13]}
{[%emt 00:00:08]} 3. d4 {[%clk 01:31:47]} {[%emt 00:00:06]} Nc6 {[%clk
01:29:31]} {[%emt 00:02:12]} 4. Nf3 {[%clk 01:22:38]} {[%emt 00:09:39]} exd4
{[%clk 01:29:52]} {[%emt 00:00:09]} 5. O-O {[%clk 01:22:16]} {[%emt 00:00:51]}
Nxe4 {[%clk 01:29:56]} {[%emt 00:00:26]} 6. Nc3 {[%emt 00:04:48]} Nd6 {[%clk
01:26:11]} 7. Qe2+ {[%clk 01:17:09]} {[%emt 00:05:34]} Be7 {[%clk 01:25:48]}
{[%emt 00:00:52]} 8. Nd5 {[%clk 01:13:27]} {[%emt 00:04:13]} Nxc4 {[%clk
01:25:13]} {[%emt 00:01:06]} 9. Qxc4 {[%clk 01:13:02]} {[%emt 00:00:55]} O-O
{[%clk 01:25:15]} {[%emt 00:00:28]} 10. Bf4 {[%clk 01:09:59]} {[%emt 00:03:33]}
d6 {[%clk 01:25:21]} {[%emt 00:00:25]} 11. Rfe1 {[%clk 01:09:15]} {[%emt
00:01:11]} Be6 {[%clk 01:22:09]} {[%emt 00:03:44]} 12. Nxd4 {[%clk 01:07:39]}
{[%emt 00:02:04]} Nxd4 {[%clk 01:21:50]} {[%emt 00:00:51]} 13. Qxd4 {[%clk
01:06:34]} {[%emt 00:01:34]} Re8 {[%clk 01:20:48]} {[%emt 00:01:33]} 14. Nxe7+
{[%clk 01:02:47]} {[%emt 00:04:18]} Qxe7 {[%clk 01:19:30]} {[%emt 00:01:47]} 15.
Re3 {[%clk 01:00:38]} {[%emt 00:02:38]} f6 {[%clk 01:16:39]} {[%emt 00:03:21]}
16. Rae1 {[%clk 00:56:33]} {[%emt 00:04:35]} Qf7 {[%clk 01:14:46]} {[%emt
00:02:24]} 17. Rg3 {[%clk 00:53:16]} {[%emt 00:03:43]} Bxa2 {[%clk 01:11:34]}
{[%emt 00:03:46]} 18. Rf1 {[%clk 00:51:32]} {[%emt 00:02:13]} Bd5 {[%clk
01:08:54]} {[%emt 00:03:08]} 19. Bh6 {[%clk 00:48:42]} {[%emt 00:03:22]} g6
{[%clk 01:08:58]} {[%emt 00:00:26]} 20. f4 {[%clk 00:47:14]} {[%emt 00:01:59]}
f5 {[%clk 01:07:20]} {[%emt 00:02:08]} 21. b3 {[%clk 00:45:27]} {[%emt
00:02:17]} Be4 {[%clk 01:05:46]} {[%emt 00:02:05]} 22. c4 {[%clk 00:44:16]}
{[%emt 00:01:41]} Re6 {[%clk 01:04:45]} {[%emt 00:01:30]} 23. h4 {[%clk
00:39:21]} {[%emt 00:05:25]} Qf6 {[%clk 01:03:54]} {[%emt 00:01:20]} 24. Qf2
{[%clk 00:39:10]} {[%emt 00:00:42]} c5 {[%clk 01:01:37]} {[%emt 00:02:47]} 25.
Rd1 {[%clk 00:36:03]} {[%emt 00:03:36]} Rae8 {[%clk 00:55:59]} {[%emt
00:06:09]} 26. h5 {[%clk 00:33:43]} {[%emt 00:02:50]} Kf7 {[%clk 00:55:45]}
{[%emt 00:00:44]} 27. hxg6+ {[%clk 00:32:39]} {[%emt 00:01:34]} hxg6 {[%clk
00:55:53]} {[%emt 00:00:23]} 28. Bg5 {[%clk 00:32:43]} {[%emt 00:00:25]} Qg7
{[%clk 00:56:03]} {[%emt 00:00:20]} 29. Rh3 {[%clk 00:32:31]} {[%emt 00:00:43]}
Rh8 {[%clk 00:56:12]} {[%emt 00:00:21]} 30. Re3 {[%clk 00:23:55]} {[%emt
00:09:05]} Rh5 {[%clk 00:52:20]} {[%emt 00:04:22]} 31. Bh4 {[%clk 00:22:00]}
{[%emt 00:02:25]} Qh8 {[%clk 00:51:34]} {[%emt 00:01:17]} 32. g3 {[%clk
00:22:12]} {[%emt 00:00:17]} a6 {[%clk 00:47:33]} {[%emt 00:04:32]} 33. Qa2
{[%clk 00:21:11]} {[%emt 00:01:30]} Rxh4 {[%clk 00:36:40]} {[%emt 00:11:23]} 34.
gxh4 {[%clk 00:20:16]} {[%emt 00:01:23]} Qxh4 {[%clk 00:36:49]} {[%emt
00:00:24]} 35. Qh2 {[%clk 00:20:36]} {[%emt 00:00:08]} Qg4+ {[%clk 00:36:43]}
{[%emt 00:00:37]} 36. Kf2 {[%clk 00:19:42]} {[%emt 00:01:24]} Qxd1 {[%clk
00:36:55]} {[%emt 00:00:19]} 37. Rxe4 {[%clk 00:18:28]} {[%emt 00:01:43]} Qc2+
{[%clk 00:37:05]} {[%emt 00:00:20]} 0-1